Cogmind - Beta 16 --- EXPLORER MODE // 2025.12.26 @ 08:45:00 Player: K.K.Y. Result: Destroyed by 3T-3B3(R) with Subdweller Laser Performance ------------- Evolutions (0) 0 Regions Visited (3) 600 Robots Destroyed (48) 240 Value Destroyed (1292) 1292 Prototype IDs (12) 240 Alien Tech Used (0) 0 Bonus (0) 0 TOTAL SCORE: 2372 Bonus ------- None Cogmind --------- Core Integrity 0/250 Matter 300/300 Energy 200/200 System Corruption 0% Temperature Cool (6) Movement Treading (240) Ox1 Location -10/Subcaves Parts ------- > --- POWER (1) -------- Subdweller Power Source > --- PROPULSION (2) --- Light Treads Light Treads > --- UTILITY (3) ------ High-capacity Storage Unit Sensor Array > --- WEAPON (2) ------- Great Maul Katana > --- INVENTORY (20) --- Huge Storage Unit Machine Analyzer Improved Terrain Scanner Hacking Suite Multitool Peak State ------------ > --- POWER ------------ Light Nuclear Core > --- PROPULSION ------- Advanced Treads VSS Leg > --- UTILITY ---------- Huge Storage Unit Weight Redist. System Hardened Medium Armor Plating > --- WEAPON ----------- Spread Laser Spread Laser > --- INVENTORY -------- Airjet Flight Unit Heat Sink Sensor Array Hacking Suite Shock Rifle Spread Laser Great Maul Katana [Rating: 21] Favorites ----------- Power Light Nuclear Core Engine Subdweller Power Source Power Core Light Nuclear Core Propulsion VTOL Module Treads Advanced Treads Leg VSS Leg Hover Unit Airjet Flight Unit VTOL Module Utility Sensor Array Device Sensor Array Storage Small Storage Unit Protection Hardened Medium Armor Plating Weapon Spread Laser Energy Gun Spread Laser Ballistic Gun Assault Rifle Special Weapon Mining Laser Impact Weapon Great Maul Slashing Weapon Katana Build | -11 -10 -10 -10 ------- Run | Yrd Mat Min Sub Slots Evolved 1 | . 1 . . Power . | . . . . Propulsion . | . . . . Utility 1 | . 1 . . Weapon . | . . . . Parts Attached 40 | 7 13 11 9 Power 5 | 1 2 . 2 Engine 4 | 1 1 . 2 Core 1 | . 1 . . Reactor . | . . . . Propulsion 12 | 2 3 4 3 Treads 5 | 2 . 1 2 Leg 1 | . . 1 . Wheel . | . . . . Hover 1 | . . . 1 Flight 5 | . 3 2 . Utility 13 | 2 4 6 1 Device 8 | 1 4 3 . Storage 4 | 1 . 2 1 Processor . | . . . . Hackware . | . . . . Protection 1 | . . 1 . Artifact . | . . . . Weapon 10 | 2 4 1 3 Energy Gun 6 | 1 3 1 1 Energy Cannon . | . . . . Ballistic Gun 1 | 1 . . . Ballistic Cannon . | . . . . Launcher . | . . . . Special Weapon 1 | . 1 . . Impact Weapon 1 | . . . 1 Slashing Weapon 1 | . . . 1 Piercing Weapon . | . . . . Special Melee Weapon . | . . . . Unidentified Prototypes . | . . . . Parts Lost 12 | . 1 3 8 Power 2 | . . . 2 Propulsion 5 | . 1 2 2 Utility 4 | . . 1 3 Weapon 1 | . . . 1 Highest Loss Streak 5 | . 1 3 5 To Critical Strikes 1 | . . . 1 Average Backups 6 | . 4 8 6 Power . | . . . . Propulsion . | . . 1 . Utility 3 | . 1 3 4 Weapon 2 | . 2 3 . Tool/Special . | . . . . Unused Backups 7 | . 1 2 4 Power . | . . . . Propulsion 1 | . . 1 . Utility 3 | . . . 3 Weapon 2 | . 1 1 . Tool/Special 1 | . . . 1 Average Slot Usage (%) 87 | . 79 92 87 Engine 3 | . 7 . 5 Core 6 | . 3 12 2 Treads 9 | . 4 8 13 Leg 4 | . . 9 . Hover 1 | . . . 4 Flight 5 | . 19 4 . Device 19 | . 17 21 17 Storage 8 | . 2 9 11 Protection 2 | . . . 4 Energy Gun 17 | . 21 25 7 Impact Weapon 2 | . . . 6 Slashing Weapon 4 | . . . 10 Peak Build Rating 21 | 7 15 21 19 Average Rating 14 | 4 10 17 15 On Entrance 10 | . 7 15 18 Avg Prop Armor Cover (%) 5 | . . 5 6 Naked Turns . | . . . . Heaviest Build 99 | 19 19 99 95 Greatest Support 40 | 40 40 28 40 Greatest Overweight (x) 10 | 5 3 10 4 Average Overweight (x) . | . . . . Largest Inventory Capacity 25 | 10 10 25 25 Average Capacity 12 | 9 5 13 14 Most Carried 12 | 4 8 12 8 Average Carried 6 | . 4 8 6 Final Capacity 20 | 10 5 8 20 Final Carried 8 | 1 5 8 5 Class Distribution -------------------- 89% | Hacker-Mutant 10% | Hacker-Sprinter Dominant Class ---------------- Hacker-Mutant | -10/Materials Hacker-Mutant | -10/Mines Hacker-Mutant | -10/Subcaves Resources | -11 -10 -10 -10 ----------- Run | Yrd Mat Min Sub Matter Collected 753 | 285 188 130 150 Remotely 112 | 94 18 . . Salvage Created 1387 | 161 602 96 528 Parts 92 | 13 39 18 22 Haulers Intercepted 2 | . 2 . . Recyclers Shooed 1 | 1 . . . Parts Field Recycled . | . . . . Retrieved Matter . | . . . . Parts Self-Destructed . | . . . . Prevented . | . . . . Parts Restored . | . . . . Kills | -11 -10 -10 -10 ------- Run | Yrd Mat Min Sub Combat Hostiles Destroyed 36 | . 18 6 12 Melee 2 | . . . 2 Guns 29 | . 18 6 5 Classes Destroyed 11 | 2 6 2 1 Worker 1 | . 1 . . Builder 3 | . . 3 . Tunneler 3 | 3 . . . Hauler 2 | . 2 . . Recycler 1 | 1 . . . Watcher 2 | . 2 . . Swarmer 8 | . 4 4 . Grunt 13 | . 11 . 2 Demolisher 2 | . . 2 . Artisan 1 | . . . 1 Subdweller 13 | . 3 . 10 Best Kill Streak 4 | 2 4 4 4 Combat Bots Only 4 | . 3 2 4 Max Kills in Single Turn 2 | 1 2 2 1 Gunslinging 1 | . 1 1 . Exploded . | . . . . Melee 1 | . . . 1 Uniques/NPCs Destroyed . | . . . . Combat | -11 -10 -10 -10 -------- Run | Yrd Mat Min Sub Hostile Shots Fired 153 | . 45 13 95 Missed 41 | . 16 3 22 Hits 112 | . 29 10 73 Projectile 112 | . 29 10 73 AOE 4 | . . 4 . Critical Strikes 3 | . . . 3 Damage Taken 1346 | . 239 172 935 Core 254 | . 48 49 157 Absorbed by Shields . | . . . . Ignored by Resistances 806 | . 150 101 555 Regen/Repaired (Parts) 23 | . 23 . . Core Remaining (%) 100 | 100 . . . Volleys Fired 83 | 5 39 8 31 Largest 2 | 2 2 2 2 Hottest 130 | 60 130 130 130 Shots Fired 133 | 10 72 16 35 Gun 133 | 10 72 16 35 Cannon . | . . . . Launcher . | . . . . Special . | . . . . Kinetic 11 | 5 6 . . Thermal 95 | 5 66 16 8 Explosive . | . . . . Electromagnetic 27 | . . . 27 Robot Hit Streak 38 | 9 31 11 38 Robot Miss Streak 5 | . 3 5 1 Penetration Max . | . . . . Secondary Targets 8 | . 4 3 1 Max Gunslinging Chain 1 | . 1 1 1 Shots Hit Robots 118 | 9 59 13 37 Core Hits 149 | 5 101 21 22 Critical Kills . | . . . . Critical Parts Destroyed 2 | . . . 2 Critical Strikes 6 | . . . 6 Corrupt 3 | . . . 3 Smash 3 | . . . 3 Melee Attacks 12 | . . . 12 Impact 10 | . . . 10 Slashing 2 | . . . 2 Piercing . | . . . . Sneak Attacks 1 | . . . 1 Combat Hostiles 1 | . . . 1 Follow-up Attacks . | . . . . Damage Inflicted 2267 | 106 1023 182 956 Guns 1708 | 106 1023 182 397 Cannons . | . . . . Explosions . | . . . . Melee 559 | . . . 559 Ramming . | . . . . Kinetic 104 | 51 53 . . Thermal 1313 | 55 970 182 106 Explosive . | . . . . Electromagnetic 291 | . . . 291 Impact 524 | . . . 524 Slashing 35 | . . . 35 Piercing . | . . . . Highest Corruption . | . . . . Average Corruption . | . . . . Corruption Purged . | . . . . Corruption Blocked . | . . . . Overload Shots . | . . . . Overflow Damage 117 | . . . 117 Projectiles . | . . . . Explosions . | . . . . Melee 117 | . . . 117 Knockbacks 4 | . . . 4 Impact 4 | . . . 4 Kinetic . | . . . . Secondary . | . . . . Self-Inflicted Damage . | . . . . Shots . | . . . . Rammed . | . . . . Targets Rammed . | . . . . Kicked . | . . . . Crushed . | . . . . Highest Temperature 356 | . 356 141 60 Average Temperature 93 | . 109 46 27 Received Heat Transfer 417 | . 144 27 246 Effects 1 | . 1 . . Shutdowns 1 | . 1 . . Siege Activations . | . . . . Martial Activations . | . . . . Shielding Activations . | . . . . Robots Disrupted . | . . . . Combat Hostiles . | . . . . Robots Corrupted 5 | . . . 5 Combat Hostiles 5 | . . . 5 Parts Fried 9 | . . . 9 Impact Corruptions 6 | . . . 6 Robots Melted . | . . . . Combat Hostiles . | . . . . Parts Melted 2 | . 1 . 1 Heat Transferred 1680 | 125 1200 220 135 Parts Sabotaged . | . . . . Parts Stolen . | . . . . Parts Stripped . | . . . . Power Chain Reactions . | . . . . Alert | -11 -10 -10 -10 ------- Run | Yrd Mat Min Sub Maximum Alert Level . | . . . . Low Security (%) 100 | 100 100 100 . Level 1 . | . . . . Level 2 . | . . . . Level 3 . | . . . . Level 4 . | . . . . Level 5 . | . . . . High Security . | . . . . Max Security . | . . . . Peak Influence 92 | 5 92 74 . Initial 9 | . 2 9 . Average 9 | 1 18 4 . Influence Increases 683 | 20 403 210 50 Destroy 0b10 Robot/C 460 | . 300 120 40 Destroy 0b10 Robot/NC 60 | 20 25 15 . Destroy Leader 118 | . 78 30 10 Partial Spotted 15 | . . 15 . Lose Combat Pursuer 30 | . . 30 . Influence Decreases 683 | 15 373 245 50 Entered New Map 29 | . 3 26 . Time Decay 624 | 15 360 199 50 Lost Part 30 | . 10 20 . Squads Dispatched 1 | . 1 . . Investigation 1 | . 1 . . Extermination . | . . . . Reinforcement . | . . . . Assault . | . . . . Garrison . | . . . . Intercept . | . . . . Searches Triggered . | . . . . Construction Impeded . | . . . . Haulers Reinforced . | . . . . Active Scanning Responses . | . . . . Cargo Convoy Interrupts . | . . . . Stealth | -11 -10 -10 -10 --------- Run | Yrd Mat Min Sub Distress Signals 1 | . . 1 . Communications Jammed . | . . . . Distress Signals . | . . . . Times Spotted 41 | . 20 8 13 Peak Tracking Total 3 | . 3 2 3 Tactical Retreats 2 | . . 1 1 Traps | -11 -10 -10 -10 ------- Run | Yrd Mat Min Sub Traps Triggered 4 | . 3 1 . Indirectly . | . . . . Trap Hack Attempts . | . . . . Triggered . | . . . . Disarmed . | . . . . Reprogrammed . | . . . . Reused . | . . . . Traps Extracted . | . . . . Installed . | . . . . Triggered . | . . . . Machines | -11 -10 -10 -10 ---------- Run | Yrd Mat Min Sub Machines Disabled . | . . . . Max in Single Turn . | . . . . Machines Repaired . | . . . . Machines Dismantled . | . . . . Machines Sabotaged . | . . . . Overloaded Fab Kills . | . . . . Hacking | -11 -10 -10 -10 --------- Run | Yrd Mat Min Sub Machines Accessed 3 | . 1 1 1 Terminals . | . . . . Fabricators . | . . . . Repair Stations 1 | . 1 . . Recycling Units . | . . . . Scanalyzers . | . . . . Garrison Access . | . . . . Total Hacks 5 | . 3 1 1 Successful 5 | . 3 1 1 Failed . | . . . . Catastrophic . | . . . . Database Lockouts . | . . . . Manual . | . . . . Terminals . | . . . . Fabricators . | . . . . Repair Stations 3 | . 3 . . Recycling Units . | . . . . Scanalyzers . | . . . . Garrison Access . | . . . . Terminal Hacks 2 | . . 1 1 Open Door 1 | . . 1 . Proto ID Catalog 1 | . . . 1 Fabricator Hacks . | . . . . Repair Station Hacks 3 | . 3 . . Scan Component 2 | . 2 . . Repair 1 | . 1 . . Recycling Unit Hacks . | . . . . Scanalyzer . | . . . . Garrison Access Hacks . | . . . . Unauthorized Hacks . | . . . . Terminals . | . . . . Fabricators . | . . . . Repair Stations . | . . . . Recycling Units . | . . . . Scanalyzers . | . . . . Garrison Access . | . . . . Data Cores Recovered . | . . . . Used . | . . . . Hacking Detections 1 | . 1 . . Full Trace Events 1 | . 1 . . Feedback Events . | . . . . Feedback Blocked . | . . . . Robot Schematics Acquired . | . . . . Robots Built . | . . . . Authchips . | . . . . Time . | . . . . Total Robot Build Rating . | . . . . Part Schematics Acquired . | . . . . Parts Built . | . . . . Authchips . | . . . . Time . | . . . . Total Part Build Rating . | . . . . Part Studies Acquired . | . . . . Parts Repaired 1 | . 1 . . Time 38 | . 38 . . Parts Recycled . | . . . . Recycled Matter . | . . . . Retrieved Matter . | . . . . Retrieved Components . | . . . . Parts Scanalyzed . | . . . . Part Schematics Acquired . | . . . . Parts Damaged . | . . . . Bothacking | -11 -10 -10 -10 ------------ Run | Yrd Mat Min Sub Used RIF Installer . | . . . . Robots Hacked . | . . . . Non-combat . | . . . . Combat . | . . . . Robot Hacks Applied . | . . . . Relay Couplers Released . | . . . . Fabnet Peak Effective % . | . . . . Robots Rewired . | . . . . Allies Hacked . | . . . . Hacks Repelled . | . . . . Allies | -11 -10 -10 -10 -------- Run | Yrd Mat Min Sub Total Allies . | . . . . Largest Group . | . . . . Highest-Rated Group . | . . . . Highest-Rated Ally . | . . . . Total Orders . | . . . . Ally Attacks . | . . . . Total Damage . | . . . . Kills . | . . . . Allies Corrupted . | . . . . Allies Melted . | . . . . Intel | -11 -10 -10 -10 ------- Run | Yrd Mat Min Sub Active Infowar (turns) 2940 | . 377 918 1645 Sensors 2396 | . . 751 1645 Terrain 289 | . . 289 . Structural 1710 | . 377 621 712 Robot Analysis Total . | . . . . Derelict Logs Recovered 1 | . . . 1 Drone Launches . | . . . . Drone Recoveries . | . . . . Exploration | -11 -10 -10 -10 ------------- Run | Yrd Mat Min Sub Turns Passed 4324 | 92 933 1654 1645 Spaces Moved 2545 | 53 782 1031 679 Core 76 | 29 . 40 7 Treads 1342 | 24 87 559 672 Legs . | . . . . Wheels . | . . . . Hover . | . . . . Flight 1127 | . 695 432 . Fastest Speed 32 | 50 32 32 100 Average Speed 137 | 118 79 135 209 Slowest Speed 550 | 300 275 550 480 Overloaded Moves . | . . . . Propulsion Burnouts . | . . . . Robots Hopped 3 | . . 3 . Potential Cave-ins . | . . . . Cave-ins Triggered . | . . . . Exploration Rate (%) 58 | 3 82 102 45 Regions Visited 3 Branch Regions 2 Pre-discovered Areas 2 | . . 1 1 Known Exits Taken 3 | 1 1 1 . Unknown Exits Taken . | . . . . Scrap Searched 2 | . . . 2 Spaces Dug . | . . . . Terrain Destroyed . | . . . . Melee . | . . . . Projectile . | . . . . AOE . | . . . . Terrain Rammed . | . . . . Walls Destroyed . | . . . . Machines Disabled . | . . . . Actions | -11 -10 -10 -10 --------- Run | Yrd Mat Min Sub Total 3219 | 72 1027 1274 846 Wait 463 | . 160 202 101 Move 2536 | 52 781 1024 679 Hop 3 | . . 3 . Pick Up 45 | 8 14 14 9 Fast Attach 13 | . 7 4 2 Attach 28 | 7 7 6 8 Detach 5 | . 5 . . Swap 7 | . 3 3 1 Drop 25 | . 11 10 4 Fire 83 | 5 39 8 31 Melee 11 | . . . 11 Ram . | . . . . Kick . | . . . . Crush . | . . . . Escape Stasis . | . . . . Rewire . | . . . . Trap . | . . . . Miscellaneous . | . . . . Route ------- -11/Scrapyard -10/Materials (discovered 5 exits: *Mat x3 / *Min / *Sub) -10/Mines (discovered 3 exits: *Mat x2 / *Sub) -10/Subcaves (discovered 1 exit: *Mat) History --------- Turn | Location | Event 3 | -11/Scrapyard | Identified exit to Materials 3 | -11/Scrapyard | Discovered exit to Materials (range 15) 93 | -11/Scrapyard | Entered Materials 93 | -10/Materials | Evolved 1 slot: Utility x1 225 | -10/Materials | Identified exit to Materials 225 | -10/Materials | Discovered exit to Materials (range 7) 315 | -10/Materials | Build established: Hacker-Mutant 441 | -10/Materials | Identified exit to Mines 441 | -10/Materials | Discovered exit to Mines (range 10) 542 | -10/Materials | Identified exit to Subcaves 542 | -10/Materials | Discovered exit to Subcaves (range 9) 593 | -10/Materials | Derelicts attacked the area 619 | -10/Materials | Discovered exit to Materials (range 10) 772 | -10/Materials | Discovered exit to Materials (range 14) 880 | -10/Materials | Repaired Lgt. Nuclear Core 1026 | -10/Materials | Entered Mines 1028 | -10/Mines | Assembled infested the area 1135 | -10/Mines | Build established: Hacker-Sprinter 1224 | -10/Mines | Lost 3 parts (2n1u) 1313 | -10/Mines | Discovered exit to Materials (range 4) 1315 | -10/Mines | Learned location of Storage (-9) 1326 | -10/Mines | Met a Derelict who couldn't figure out how to use a Trap Extractor 1478 | -10/Mines | Build established: Hacker-Mutant 1647 | -10/Mines | YI-UF0 nonchalantly dropped a Grenade Launcher on the ground 1999 | -10/Mines | Discovered exit to Materials (range 15) 2671 | -10/Mines | Discovered exit to Subcaves (range 6) 2680 | -10/Mines | Entered Subcaves 2681 | -10/Subcaves | Approached by a straggling Scientist 2823 | -10/Subcaves | Visited 4L-MR0's lab 3063 | -10/Subcaves | Ambushed by angry Subdweller bent on revenge 3176 | -10/Subcaves | Shifting Twisted Machinery released Sub. Laser 3176 | -10/Subcaves | Shifting Twisted Machinery released Mak. Shrapnel Gun 3356 | -10/Subcaves | Core integrity fell below 50% 3437 | -10/Subcaves | Lost 5 parts (1p2n2u) 3504 | -10/Subcaves | Core integrity fell below 20% 4123 | -10/Subcaves | Identified exit to Materials 4123 | -10/Subcaves | Discovered exit to Materials (range 11) 4134 | -10/Subcaves | Shifting Twisted Machinery released Scrap Shield 4146 | -10/Subcaves | Shifting Twisted Machinery released Battle Rifle 4258 | -10/Subcaves | Learned location of Zion (-6) 4325 | -10/Subcaves | Destroyed by 3T-3B3(R) with Subdweller Laser Last Messages --------------- 04123_ EXIT=FOUND: MATERIALS Scrap Shield falls loose from the Twisted Machinery. 04139_ Acquired Lgt. Treads. 04143_ Acquired 10 matter. Battle Rifle falls loose from the Twisted Machinery. 04258_ Acquired derelict log, extracted data. World map updated: -6/Zion. 04313_ Destroyed Sub. Optics. 04313_ 3T-3B3(R) system corrupted by crushing effect. 04316_ Destroyed Sub. Optics. 04316_ ME-8Q8(R) system corrupted by crushing effect. 04317_ ME-8Q8(R) system terminally corrupted. 04317_ Sub. Power Source fried. 04317_ Sub. Laser fried. 04319_ 3T-3B3(R) suffers critical hit (Smash). 04319_ 3T-3B3(R) knocked back. Map ----- +----------------------------------------------------+ | ?????????????## "##?????????????????? | | ???????#####??# #??????????????????? | | ???????# ##?# [ ## #??????????????????? | | ???????# ### "" ##?# #?????????????????? | | ???????# ## "" #??? ##?????????????????? | | ???????# " " ##?? ##??????????????????? | | ??????## #??##???????????????????? | | ????### #????##?????????????????? | | ???## #####??## ##????????????????? | | ???# ##?????# ##???????????????? | | ???# ####### #???????????????? | | ???# #????????????????? | | ??# ## ## #####??????????????? | | ??####### ## #### # # #??????????????? | | ????????########??### ##?????????????? | | ????????????????????### #?????????????? | | ??????????????????????## ### #?????????????? | | ???????????????????????##### #?????????????? | | ?????????????????????????# #?????????????? | | ?????????????????????????# #?????????????? | | ?????????????????????????# ##?????????????? | | ?????????????????????????# #??????????????? | | ??????????????????????#### ""#??????????????? | | ?????????????????????## & "#??????????????? | | ?????????????????????# % "##??????????????? | | ?????????????????????# @R##???????????????? | | ?????????????????????#### #????????????????? | | ????????????????????????# #????????????????? | | ???????????????????????## #????????????????? | | ???????????????????????# " #????????????????? | | ??????????????????????# "" #????????????????? | | ?????????????????????# """ #????????????????? | | ????????????????????" """ #????????????????? | | ??????????????????? " " #????????????????? | | ?????????????????? """" #????????????????? | | ?????????????????# ""? #????????????????? | | ?????????????????##???? #????????????????? | | ?????????????????????? ????????????????? | | ?????????????????????? ????????????????? | | ??????????????????????? ????????????????? | | ??????????????????????? ????????????????? | | ??????????????????????? #????????????????? | | ???????????????????????? ?????????????????? | | ???????????????????????? ##?????????????????? | | ????????????????????????#???????????????????? | | ????????????????????????????????????????????? | | ????????????????????????????????????????????? | | ????????????????????????????????????????????? | | ????????????????????????????????????????????? | | ????????????????????????????????????????????? | +----------------------------------------------------+ Best States ------------- Heat Dissipation 35 Energy Generation 15 Energy Capacity 250 Matter Stores 300 Matter Capacity 300 Sight Range 16 Robot Scan Range 14 Terrain Scan Range 16 Terrain Scan Density 10 Additional Mass Support 6 Armor Coverage 225 Resistance: KI 35 Resistance: TH 35 Resistance: EX 35 Resistance: EM 35 Resistance: I 35 Resistance: S 35 Resistance: P 35 Evasion (%) 63 Recoil Reduction 2 Offensive Hacking 20 Item Schematics ----------------- None Robot Schematics ------------------ None Fabricated ------------ Nothing Repaired ---------- Lgt. Nuclear Core | 54% | -10/Materials Studied --------- None Alien Tech Used ----------------- None Achievements -------------- None Challenges ------------ None Game ------ Seed ProjectileReflexSegregator Manual? 0 Play Time 00:21:16 Cumulative 227.8 hours Start 2025.12.26 @ 08:25:15 End 2025.12.26 @ 08:45:00 Sessions 1 Manual Loads 0 Difficulty Explorer Special Mode None Game No. 351 Rogue 0 Adventurer 0 Explorer 351 Win Type - Total 0 Types 0/0/0/0/0/0/0/0/0/0 Lore% 71 Gallery% 68 Achievement% 53 Wizard Run 0 Options --------- Layout 1 ASCII 0 Keyboard 0 Movement Mouse Keybinds 0 Fullscreen 1 Font 24/Smallcaps Map View 50x35 Zoom Use 0% Tactical HUD 1 Map Filters NONE Filters NONE Steam 1 RUN: 73eb2f7e-21f4-4d67-830e-d035d0c79cca